[Event "Early-Titled-Tuesday-Blitz-January-30-2024"]
[Site "Chess.com"]
[Date "2024.01.30"]
[Round "6"]
[White "Alenzer"]
[Black "KorolDimitriy75"]
[Result "0-1"]
[WhiteElo "2142"]
[BlackElo "2351"]
[TimeControl "180+1"]
[EndTime "9:08:44 PST"]
[Termination "KorolDimitriy75 won on time"]

1. e4 {[%clk 0:02:58.8]} 1... c5 {[%clk 0:03:00]} 2. Nf3 {[%clk 0:02:58.3]} 2...
d6 {[%clk 0:03:00.4]} 3. d4 {[%clk 0:02:56.3]} 3... cxd4 {[%clk 0:03:01.3]} 4.
Nxd4 {[%clk 0:02:56.3]} 4... Nf6 {[%clk 0:03:01.9]} 5. Nc3 {[%clk 0:02:56.3]}
5... g6 {[%clk 0:03:02.5]} 6. Be3 {[%clk 0:02:42.1]} 6... Bg7 {[%clk 0:03:03]}
7. f3 {[%clk 0:02:41.6]} 7... O-O {[%clk 0:03:03.6]} 8. Bc4 {[%clk 0:02:38.1]}
8... Nc6 {[%clk 0:03:04.2]} 9. O-O {[%clk 0:02:30.1]} 9... Bd7 {[%clk
0:03:04.7]} 10. a4 {[%clk 0:02:24.9]} 10... Rc8 {[%clk 0:03:00.8]} 11. Bb3
{[%clk 0:02:24.5]} 11... a6 {[%clk 0:02:55.5]} 12. Nd5 {[%clk 0:02:19.9]} 12...
Na5 {[%clk 0:02:42.5]} 13. c3 {[%clk 0:02:08.7]} 13... Nc4 {[%clk 0:01:56.5]}
14. Bxc4 {[%clk 0:01:58]} 14... Rxc4 {[%clk 0:01:57.4]} 15. a5 {[%clk
0:01:39.7]} 15... Nxd5 {[%clk 0:01:19.3]} 16. exd5 {[%clk 0:01:29.8]} 16... Qc7
{[%clk 0:01:04.7]} 17. Qd2 {[%clk 0:01:09.2]} 17... Qc5 {[%clk 0:00:47.3]} 18.
Nf5 {[%clk 0:00:54.3]} 18... Qb5 {[%clk 0:00:45.3]} 19. Nxg7 {[%clk 0:00:50.7]}
19... Kxg7 {[%clk 0:00:40]} 20. Bh6+ {[%clk 0:00:44.3]} 20... Kg8 {[%clk
0:00:40.2]} 21. Bxf8 {[%clk 0:00:44.4]} 21... Kxf8 {[%clk 0:00:41.1]} 22. Rfe1
{[%clk 0:00:34.3]} 22... Qc5+ {[%clk 0:00:19.5]} 23. Qe3 {[%clk 0:00:17.6]}
23... Qxe3+ {[%clk 0:00:19]} 24. Rxe3 {[%clk 0:00:18]} 24... Rc5 {[%clk
0:00:19.5]} 25. Rd3 {[%clk 0:00:18.2]} 25... Bb5 {[%clk 0:00:17.9]} 26. Rd2
{[%clk 0:00:18.4]} 26... Bc4 {[%clk 0:00:18.3]} 27. Kf2 {[%clk 0:00:14.2]} 27...
Bxd5 {[%clk 0:00:16.5]} 28. Ra4 {[%clk 0:00:11.4]} 28... Bc6 {[%clk 0:00:15.9]}
29. Ra1 {[%clk 0:00:09.3]} 29... h5 {[%clk 0:00:15.8]} 30. Rd3 {[%clk
0:00:07.5]} 30... d5 {[%clk 0:00:16]} 31. b4 {[%clk 0:00:06.1]} 31... Rc4 {[%clk
0:00:15.7]} 32. Rc1 {[%clk 0:00:05.5]} 32... e5 {[%clk 0:00:14.1]} 33. Rd2
{[%clk 0:00:02]} 33... Ke7 {[%clk 0:00:14]} 34. Rdc2 {[%clk 0:00:01.9]} 34...
Ke6 {[%clk 0:00:14.3]} 35. Ke3 {[%clk 0:00:02.1]} 35... Ba4 {[%clk 0:00:13]} 36.
Ra2 {[%clk 0:00:01.5]} 36... Bb5 {[%clk 0:00:13.1]} 37. Rac2 {[%clk 0:00:01.8]}
37... f5 {[%clk 0:00:12.7]} 38. g3 {[%clk 0:00:01.8]} 38... h4 {[%clk
0:00:12.8]} 39. gxh4 {[%clk 0:00:01.7]} 39... Rxh4 {[%clk 0:00:13.4]} 0-1

[Event "Early-Titled-Tuesday-Blitz-January-30-2024"]
[Site "Chess.com"]
[Date "2024.01.30"]
[Round "6"]
[White "BeardedNM"]
[Black "simonachess"]
[Result "1/2-1/2"]
[WhiteElo "2199"]
[BlackElo "2353"]
[TimeControl "180+1"]
[EndTime "9:08:45 PST"]
[Termination "Game drawn by repetition"]

1. e4 {[%clk 0:02:58.7]} 1... d5 {[%clk 0:02:57.6]} 2. exd5 {[%clk 0:02:58.3]}
2... Nf6 {[%clk 0:02:57.9]} 3. Bb5+ {[%clk 0:02:57.6]} 3... Bd7 {[%clk
0:02:54.4]} 4. Be2 {[%clk 0:02:58.5]} 4... Bf5 {[%clk 0:02:51.1]} 5. d4 {[%clk
0:02:55.4]} 5... Qxd5 {[%clk 0:02:40.4]} 6. Nf3 {[%clk 0:02:55.4]} 6... e6
{[%clk 0:02:34.7]} 7. O-O {[%clk 0:02:48.6]} 7... Nc6 {[%clk 0:02:17.4]} 8. Be3
{[%clk 0:02:31.2]} 8... O-O-O {[%clk 0:02:13.6]} 9. c3 {[%clk 0:02:23.7]} 9...
Bg4 {[%clk 0:02:03.2]} 10. Nbd2 {[%clk 0:02:21.5]} 10... h5 {[%clk 0:01:26.7]}
11. Qb3 {[%clk 0:02:00.5]} 11... Qxb3 {[%clk 0:01:12.6]} 12. axb3 {[%clk
0:02:00.1]} 12... Nd5 {[%clk 0:01:12.7]} 13. Rfe1 {[%clk 0:01:44.7]} 13... Nxe3
{[%clk 0:01:10.3]} 14. fxe3 {[%clk 0:01:44.2]} 14... e5 {[%clk 0:01:09]} 15. Nc4
{[%clk 0:01:37]} 15... exd4 {[%clk 0:00:51.3]} 16. exd4 {[%clk 0:01:32.9]} 16...
f6 {[%clk 0:00:49.3]} 17. Nh4 {[%clk 0:01:16.4]} 17... Bd6 {[%clk 0:00:29.6]}
18. d5 {[%clk 0:00:59.7]} 18... Ne5 {[%clk 0:00:20.3]} 19. Nxe5 {[%clk
0:00:59.1]} 19... fxe5 {[%clk 0:00:20.4]} 20. Ng6 {[%clk 0:00:38.3]} 20... Rhe8
{[%clk 0:00:16.3]} 21. Bxg4+ {[%clk 0:00:28]} 21... hxg4 {[%clk 0:00:17.2]} 22.
b4 {[%clk 0:00:28.1]} 22... a6 {[%clk 0:00:17.1]} 23. Nh4 {[%clk 0:00:26.9]}
23... Rf8 {[%clk 0:00:14.4]} 24. Rf1 {[%clk 0:00:24.6]} 24... Kd7 {[%clk
0:00:14.3]} 25. Nf5 {[%clk 0:00:22.4]} 25... Rf7 {[%clk 0:00:12.2]} 26. Nxd6
{[%clk 0:00:21.6]} 26... Rxf1+ {[%clk 0:00:12.1]} 27. Rxf1 {[%clk 0:00:22.1]}
27... Kxd6 {[%clk 0:00:12.6]} 28. Rf7 {[%clk 0:00:21.9]} 28... b6 {[%clk
0:00:10.6]} 29. Rxg7 {[%clk 0:00:21.4]} 29... Rc8 {[%clk 0:00:11.1]} 30. Rxg4
{[%clk 0:00:21.4]} 30... Kxd5 {[%clk 0:00:11.3]} 31. h4 {[%clk 0:00:19.6]} 31...
a5 {[%clk 0:00:09.3]} 32. bxa5 {[%clk 0:00:19.7]} 32... bxa5 {[%clk 0:00:10.2]}
33. h5 {[%clk 0:00:20]} 33... Rb8 {[%clk 0:00:10.5]} 34. b4 {[%clk 0:00:19.5]}
34... axb4 {[%clk 0:00:10.8]} 35. Rxb4 {[%clk 0:00:18.9]} 35... Rh8 {[%clk
0:00:10.9]} 36. Rh4 {[%clk 0:00:18.6]} 36... Ke6 {[%clk 0:00:10.4]} 37. g4
{[%clk 0:00:18.1]} 37... Kf6 {[%clk 0:00:11]} 38. h6 {[%clk 0:00:17.1]} 38...
Kg5 {[%clk 0:00:11.4]} 39. Rh5+ {[%clk 0:00:16.6]} 39... Kxg4 {[%clk 0:00:11.8]}
40. Rh2 {[%clk 0:00:16.3]} 40... Rh7 {[%clk 0:00:11.4]} 41. Kf2 {[%clk
0:00:15.6]} 41... Kf4 {[%clk 0:00:11.7]} 42. Ke2 {[%clk 0:00:15.7]} 42... e4
{[%clk 0:00:12]} 43. Rh4+ {[%clk 0:00:15.6]} 43... Ke5 {[%clk 0:00:12.4]} 44.
Ke3 {[%clk 0:00:15.5]} 44... Kf5 {[%clk 0:00:12.7]} 45. Rh5+ {[%clk 0:00:14.9]}
45... Kg6 {[%clk 0:00:12.5]} 46. Rh4 {[%clk 0:00:14.9]} 46... Kf5 {[%clk
0:00:12.9]} 47. Rh5+ {[%clk 0:00:15.1]} 47... Kg6 {[%clk 0:00:13.4]} 48. Rh4
{[%clk 0:00:15.6]} 48... Kf5 {[%clk 0:00:13.6]} 1/2-1/2

[Event "Early-Titled-Tuesday-Blitz-January-30-2024"]
[Site "Chess.com"]
[Date "2024.01.30"]
[Round "6"]
[White "chucksterf10"]
[Black "artooon"]
[Result "0-1"]
[WhiteElo "2624"]
[BlackElo "3006"]
[TimeControl "180+1"]
[EndTime "9:08:49 PST"]
[Termination "artooon won by resignation"]

1. d4 {[%clk 0:03:00.9]} 1... Nf6 {[%clk 0:02:58.1]} 2. c4 {[%clk 0:03:01.4]}
2... e6 {[%clk 0:02:57.9]} 3. g3 {[%clk 0:03:01.8]} 3... d5 {[%clk 0:02:58.2]}
4. Nf3 {[%clk 0:03:01.7]} 4... Be7 {[%clk 0:02:58.9]} 5. Bg2 {[%clk 0:03:02.1]}
5... O-O {[%clk 0:02:59.6]} 6. O-O {[%clk 0:03:02.9]} 6... dxc4 {[%clk
0:02:59.9]} 7. Ne5 {[%clk 0:03:03.4]} 7... Nc6 {[%clk 0:02:57.5]} 8. Bxc6 {[%clk
0:02:58.7]} 8... bxc6 {[%clk 0:02:58.4]} 9. Nxc6 {[%clk 0:02:59.6]} 9... Qe8
{[%clk 0:02:59]} 10. Nxe7+ {[%clk 0:03:00.2]} 10... Qxe7 {[%clk 0:02:59.9]} 11.
Qa4 {[%clk 0:03:00.7]} 11... e5 {[%clk 0:02:53.4]} 12. dxe5 {[%clk 0:03:01.6]}
12... Qxe5 {[%clk 0:02:54.1]} 13. Qxc4 {[%clk 0:03:02.2]} 13... Bh3 {[%clk
0:02:51.6]} 14. Re1 {[%clk 0:02:51.4]} 14... Rfe8 {[%clk 0:02:20]} 15. Nc3
{[%clk 0:02:46.8]} 15... Ng4 {[%clk 0:02:12.4]} 16. Qd5 {[%clk 0:02:22.6]} 16...
Qf6 {[%clk 0:02:05.4]} 17. Bf4 {[%clk 0:02:14.2]} 17... h6 {[%clk 0:02:04.9]}
18. Qf3 {[%clk 0:02:00.5]} 18... Qf5 {[%clk 0:01:51.6]} 19. e4 {[%clk
0:01:59.6]} 19... Qa5 {[%clk 0:01:41.5]} 20. Nd5 {[%clk 0:01:55.9]} 20... Rac8
{[%clk 0:01:32.8]} 21. b4 {[%clk 0:01:51.9]} 21... Qa4 {[%clk 0:01:30.5]} 22.
Nxc7 {[%clk 0:01:47.5]} 22... Red8 {[%clk 0:01:16.2]} 23. Nd5 {[%clk 0:01:47.7]}
23... Rc2 {[%clk 0:01:15.6]} 24. Re2 {[%clk 0:01:40.6]} 24... Kh8 {[%clk
0:01:02.1]} 25. Bc7 {[%clk 0:01:09.6]} 25... Qxa2 {[%clk 0:00:53.2]} 26. Rae1
{[%clk 0:00:57.4]} 26... Rc8 {[%clk 0:00:34.9]} 27. Qd3 {[%clk 0:00:24.7]} 27...
Rxe2 {[%clk 0:00:20.5]} 28. Qxe2 {[%clk 0:00:25.6]} 28... Qxe2 {[%clk 0:00:19]}
29. Rxe2 {[%clk 0:00:26.5]} 29... Nf6 {[%clk 0:00:19.8]} 30. Rc2 {[%clk
0:00:14.8]} 30... Nxe4 {[%clk 0:00:20]} 31. Nf4 {[%clk 0:00:08.5]} 31... Bf5
{[%clk 0:00:17.3]} 32. Rc1 {[%clk 0:00:08.3]} 32... Ng5 {[%clk 0:00:16.5]} 33.
h4 {[%clk 0:00:06.7]} 33... Nf3+ {[%clk 0:00:16]} 34. Kg2 {[%clk 0:00:07.2]}
34... Be4 {[%clk 0:00:15.9]} 35. Kf1 {[%clk 0:00:07.6]} 35... Nd4 {[%clk
0:00:14.1]} 36. Rc4 {[%clk 0:00:06.1]} 36... Bf5 {[%clk 0:00:09.5]} 37. Nd5
{[%clk 0:00:04.5]} 37... Bd3+ {[%clk 0:00:09.2]} 38. Kg2 {[%clk 0:00:02.6]}
38... Bxc4 {[%clk 0:00:10.1]} 0-1

[Event "Early-Titled-Tuesday-Blitz-January-30-2024"]
[Site "Chess.com"]
[Date "2024.01.30"]
[Round "6"]
[White "mbchess97"]
[Black "betta2004"]
[Result "1-0"]
[WhiteElo "2387"]
[BlackElo "2513"]
[TimeControl "180+1"]
[EndTime "9:08:49 PST"]
[Termination "mbchess97 won by resignation"]

1. c4 {[%clk 0:03:00.9]} 1... g6 {[%clk 0:02:58.6]} 2. g3 {[%clk 0:02:55.3]}
2... Bg7 {[%clk 0:02:59.5]} 3. Bg2 {[%clk 0:02:55.1]} 3... d6 {[%clk 0:03:00]}
4. Nc3 {[%clk 0:02:53.9]} 4... c5 {[%clk 0:03:00.5]} 5. Nf3 {[%clk 0:02:50.6]}
5... Nc6 {[%clk 0:03:01]} 6. d4 {[%clk 0:02:23.3]} 6... cxd4 {[%clk 0:02:57.5]}
7. Nb5 {[%clk 0:02:23.3]} 7... Qb6 {[%clk 0:02:54.4]} 8. e3 {[%clk 0:02:08.4]}
8... dxe3 {[%clk 0:02:23.3]} 9. Bxe3 {[%clk 0:02:07.7]} 9... Qa5+ {[%clk
0:02:23.7]} 10. Bd2 {[%clk 0:02:07.1]} 10... Qd8 {[%clk 0:02:14]} 11. O-O {[%clk
0:01:58.6]} 11... a6 {[%clk 0:02:14.2]} 12. Nc3 {[%clk 0:01:55.5]} 12... Nf6
{[%clk 0:02:14.1]} 13. Re1 {[%clk 0:01:51.2]} 13... O-O {[%clk 0:02:14.1]} 14.
Qe2 {[%clk 0:01:35.2]} 14... h6 {[%clk 0:02:12.5]} 15. Rad1 {[%clk 0:01:34.9]}
15... Be6 {[%clk 0:02:11.1]} 16. b3 {[%clk 0:01:34.4]} 16... Qc7 {[%clk
0:02:02.2]} 17. Bf4 {[%clk 0:01:26.6]} 17... Nd7 {[%clk 0:01:54.2]} 18. Nd5
{[%clk 0:01:23.5]} 18... Bxd5 {[%clk 0:01:54]} 19. cxd5 {[%clk 0:01:20.5]} 19...
Nce5 {[%clk 0:01:54.5]} 20. Nd4 {[%clk 0:01:03.6]} 20... Rac8 {[%clk 0:01:39.6]}
21. Qd2 {[%clk 0:00:54.1]} 21... Kh7 {[%clk 0:01:35]} 22. h4 {[%clk 0:00:45.5]}
22... Qc3 {[%clk 0:01:23.9]} 23. Qe2 {[%clk 0:00:43.3]} 23... Qa5 {[%clk
0:01:19.7]} 24. h5 {[%clk 0:00:41.2]} 24... g5 {[%clk 0:01:17.7]} 25. Be4+
{[%clk 0:00:29.1]} 25... Kg8 {[%clk 0:01:16.8]} 26. Bd2 {[%clk 0:00:24.4]} 26...
Qc5 {[%clk 0:01:09.7]} 27. Nf5 {[%clk 0:00:21.8]} 27... Nf6 {[%clk 0:01:07.8]}
28. Be3 {[%clk 0:00:17.9]} 28... Qb5 {[%clk 0:01:04.3]} 29. Nxe7+ {[%clk
0:00:17.6]} 29... Kh8 {[%clk 0:01:03.5]} 30. Bd3 {[%clk 0:00:14.2]} 30... Nxd3
{[%clk 0:01:02.5]} 31. Rxd3 {[%clk 0:00:14.4]} 31... Rce8 {[%clk 0:01:02.1]} 32.
Nf5 {[%clk 0:00:14.2]} 32... Ne4 {[%clk 0:00:58.3]} 33. Nxg7 {[%clk 0:00:13.1]}
33... Kxg7 {[%clk 0:00:59.2]} 34. Bd4+ {[%clk 0:00:12.9]} 34... f6 {[%clk
0:00:59.4]} 35. Re3 {[%clk 0:00:11.5]} 35... Qxe2 {[%clk 0:00:56.1]} 36. R1xe2
{[%clk 0:00:11.8]} 36... Nxg3 {[%clk 0:00:45.2]} 37. Rxe8 {[%clk 0:00:10]} 37...
Nxe2+ {[%clk 0:00:45.3]} 38. Rxe2 {[%clk 0:00:10.2]} 38... Kf7 {[%clk
0:00:45.6]} 39. Kg2 {[%clk 0:00:10.6]} 39... f5 {[%clk 0:00:44.8]} 40. f3 {[%clk
0:00:10.3]} 40... Rc8 {[%clk 0:00:43.1]} 41. Kf2 {[%clk 0:00:10.5]} 41... Rc1
{[%clk 0:00:42.7]} 42. Re6 {[%clk 0:00:10.2]} 42... Rc2+ {[%clk 0:00:42]} 43.
Kf1 {[%clk 0:00:08.7]} 43... Rxa2 {[%clk 0:00:41.3]} 44. Rxh6 {[%clk 0:00:08.5]}
44... Ra3 {[%clk 0:00:38.8]} 45. Rxd6 {[%clk 0:00:08.4]} 45... Rxb3 {[%clk
0:00:39]} 46. h6 {[%clk 0:00:08.5]} 46... Rxf3+ {[%clk 0:00:38.5]} 47. Kg2
{[%clk 0:00:09]} 47... g4 {[%clk 0:00:39]} 48. h7 {[%clk 0:00:09.2]} 48... Rh3
{[%clk 0:00:39.7]} 49. h8=Q {[%clk 0:00:09.2]} 49... Rxh8 {[%clk 0:00:40.6]} 50.
Bxh8 {[%clk 0:00:09]} 50... Ke7 {[%clk 0:00:41.5]} 51. Re6+ {[%clk 0:00:09.2]}
51... Kd7 {[%clk 0:00:42.4]} 52. Be5 {[%clk 0:00:09]} 52... a5 {[%clk
0:00:41.7]} 53. Kg3 {[%clk 0:00:09.3]} 53... a4 {[%clk 0:00:42.2]} 54. Rb6
{[%clk 0:00:09]} 54... a3 {[%clk 0:00:42.6]} 55. Ba1 {[%clk 0:00:08.1]} 55...
Kc8 {[%clk 0:00:43.5]} 56. Kf4 {[%clk 0:00:07.8]} 56... Kc7 {[%clk 0:00:43.8]}
57. Rb3 {[%clk 0:00:07]} 57... Kd6 {[%clk 0:00:43.5]} 58. Rxa3 {[%clk
0:00:07.2]} 58... Kxd5 {[%clk 0:00:44.3]} 59. Rb3 {[%clk 0:00:07.6]} 59... Ke6
{[%clk 0:00:45.2]} 60. Rxb7 {[%clk 0:00:07.4]} 60... g3 {[%clk 0:00:45.9]} 61.
Kxg3 {[%clk 0:00:07]} 1-0

[Event "Early-Titled-Tuesday-Blitz-January-30-2024"]
[Site "Chess.com"]
[Date "2024.01.30"]
[Round "6"]
[White "BogdanDeac"]
[Black "ViIIagra"]
[Result "0-1"]
[WhiteElo "3082"]
[BlackElo "2970"]
[TimeControl "180+1"]
[EndTime "9:08:50 PST"]
[Termination "ViIIagra won on time"]

1. d4 {[%clk 0:03:00.9]} 1... Nf6 {[%clk 0:02:59.5]} 2. Nf3 {[%clk 0:03:00.4]}
2... g6 {[%clk 0:03:00.1]} 3. Nbd2 {[%clk 0:03:00.5]} 3... d5 {[%clk 0:02:56.6]}
4. Nb3 {[%clk 0:03:00.6]} 4... Bg7 {[%clk 0:02:56.2]} 5. Bf4 {[%clk 0:03:01.2]}
5... O-O {[%clk 0:02:56.4]} 6. e3 {[%clk 0:03:01.5]} 6... a5 {[%clk 0:02:56.2]}
7. a4 {[%clk 0:03:01.1]} 7... b6 {[%clk 0:02:56.1]} 8. Be2 {[%clk 0:03:00.5]}
8... Ne4 {[%clk 0:02:11.9]} 9. O-O {[%clk 0:02:48.6]} 9... Bf5 {[%clk
0:02:10.1]} 10. Rc1 {[%clk 0:02:26.8]} 10... Nd6 {[%clk 0:01:40.2]} 11. Bd3
{[%clk 0:02:06.8]} 11... e6 {[%clk 0:01:37.3]} 12. Qe2 {[%clk 0:01:52.5]} 12...
Nc6 {[%clk 0:01:35.6]} 13. Bxd6 {[%clk 0:01:36.1]} 13... Qxd6 {[%clk 0:01:30.5]}
14. Bxf5 {[%clk 0:01:35.9]} 14... exf5 {[%clk 0:01:27.7]} 15. g3 {[%clk
0:01:30.9]} 15... Qb4 {[%clk 0:01:20.3]} 16. Ra1 {[%clk 0:01:22.4]} 16... Rfe8
{[%clk 0:01:20.4]} 17. Qd3 {[%clk 0:01:22]} 17... Qd6 {[%clk 0:01:18.6]} 18.
Rfc1 {[%clk 0:01:14]} 18... Bf6 {[%clk 0:01:17.6]} 19. Nbd2 {[%clk 0:01:08.5]}
19... Kg7 {[%clk 0:01:17.1]} 20. Kg2 {[%clk 0:01:07.7]} 20... h5 {[%clk
0:01:17.2]} 21. h4 {[%clk 0:01:07]} 21... Re7 {[%clk 0:01:17.7]} 22. Qb5 {[%clk
0:01:04.4]} 22... Na7 {[%clk 0:00:50.3]} 23. Qb3 {[%clk 0:01:00]} 23... Nc6
{[%clk 0:00:48.6]} 24. Qb5 {[%clk 0:00:39.3]} 24... Rd8 {[%clk 0:00:45.3]} 25.
c3 {[%clk 0:00:25.9]} 25... Qe6 {[%clk 0:00:44.3]} 26. Nf1 {[%clk 0:00:18.6]}
26... Na7 {[%clk 0:00:43.2]} 27. Qd3 {[%clk 0:00:17.9]} 27... Nc8 {[%clk
0:00:43.7]} 28. c4 {[%clk 0:00:15.4]} 28... Nd6 {[%clk 0:00:43.5]} 29. c5 {[%clk
0:00:13.3]} 29... Ne4 {[%clk 0:00:43.4]} 30. cxb6 {[%clk 0:00:12.3]} 30... Qxb6
{[%clk 0:00:44.3]} 31. Qb5 {[%clk 0:00:11.8]} 31... Qe6 {[%clk 0:00:41.5]} 32.
Qxa5 {[%clk 0:00:08.8]} 32... f4 {[%clk 0:00:29.9]} 33. exf4 {[%clk 0:00:06.3]}
33... Nxf2 {[%clk 0:00:30.4]} 34. Re1 {[%clk 0:00:06.4]} 34... Ne4 {[%clk
0:00:29.4]} 35. Rac1 {[%clk 0:00:06.9]} 35... Rb8 {[%clk 0:00:28.2]} 36. Rc2
{[%clk 0:00:06.3]} 36... Rb3 {[%clk 0:00:27.8]} 37. Ree2 {[%clk 0:00:04.5]}
37... c5 {[%clk 0:00:14.8]} 38. dxc5 {[%clk 0:00:02.8]} 38... d4 {[%clk
0:00:15.5]} 39. c6 {[%clk 0:00:02.8]} 39... Qg4 {[%clk 0:00:14.8]} 40. N3h2
{[%clk 0:00:01.9]} 40... Rxg3+ {[%clk 0:00:14.1]} 41. Nxg3 {[%clk 0:00:02.2]}
41... Qxg3+ {[%clk 0:00:15]} 42. Kh1 {[%clk 0:00:02.6]} 42... d3 {[%clk
0:00:15.8]} 43. Rxe4 {[%clk 0:00:02.5]} 43... dxc2 {[%clk 0:00:15.4]} 0-1

[Event "Early-Titled-Tuesday-Blitz-January-30-2024"]
[Site "Chess.com"]
[Date "2024.01.30"]
[Round "6"]
[White "Matibar"]
[Black "Bauman_Guy"]
[Result "1-0"]
[WhiteElo "2811"]
[BlackElo "2860"]
[TimeControl "180+1"]
[EndTime "9:08:51 PST"]
[Termination "Matibar won by resignation"]

1. Nf3 {[%clk 0:03:00.9]} 1... d5 {[%clk 0:02:59.8]} 2. c4 {[%clk 0:02:59.9]}
2... c6 {[%clk 0:02:59.2]} 3. e3 {[%clk 0:02:58.7]} 3... Nf6 {[%clk 0:02:59.2]}
4. b3 {[%clk 0:02:58.7]} 4... g6 {[%clk 0:02:59.4]} 5. Bb2 {[%clk 0:02:58.7]}
5... Bg7 {[%clk 0:03:00.1]} 6. h3 {[%clk 0:02:58.3]} 6... O-O {[%clk 0:03:00.5]}
7. Be2 {[%clk 0:02:55.2]} 7... a6 {[%clk 0:03:00]} 8. O-O {[%clk 0:02:54.8]}
8... b5 {[%clk 0:03:00.6]} 9. d4 {[%clk 0:02:48.6]} 9... Bf5 {[%clk 0:02:59.5]}
10. Nbd2 {[%clk 0:02:40.7]} 10... Nbd7 {[%clk 0:02:59.1]} 11. a4 {[%clk
0:02:40]} 11... bxc4 {[%clk 0:02:58.4]} 12. bxc4 {[%clk 0:02:39.9]} 12... Rb8
{[%clk 0:02:58.9]} 13. Ba3 {[%clk 0:02:39.9]} 13... a5 {[%clk 0:02:55.3]} 14.
cxd5 {[%clk 0:02:11.2]} 14... Nxd5 {[%clk 0:02:55.1]} 15. Rc1 {[%clk 0:02:05.2]}
15... Nb4 {[%clk 0:02:55.2]} 16. e4 {[%clk 0:02:03]} 16... Be6 {[%clk
0:02:52.7]} 17. Nc4 {[%clk 0:01:59.3]} 17... Nf6 {[%clk 0:02:37.8]} 18. Bd3
{[%clk 0:01:35.6]} 18... c5 {[%clk 0:02:18.3]} 19. d5 {[%clk 0:01:30.6]} 19...
Bc8 {[%clk 0:02:18.5]} 20. Ne3 {[%clk 0:01:14.6]} 20... e6 {[%clk 0:02:01.7]}
21. Rxc5 {[%clk 0:01:10]} 21... exd5 {[%clk 0:02:00.9]} 22. exd5 {[%clk
0:01:09.8]} 22... Re8 {[%clk 0:01:55.9]} 23. Bb5 {[%clk 0:01:08.6]} 23... Bd7
{[%clk 0:01:53.2]} 24. Bxd7 {[%clk 0:00:48.3]} 24... Nxd7 {[%clk 0:01:52.8]} 25.
Rc1 {[%clk 0:00:34.8]} 25... Nf6 {[%clk 0:01:52]} 26. Bxb4 {[%clk 0:00:33]}
26... axb4 {[%clk 0:01:48.9]} 27. Qb3 {[%clk 0:00:31.8]} 27... Ne4 {[%clk
0:01:48.7]} 28. Rc4 {[%clk 0:00:29.4]} 28... Qd6 {[%clk 0:01:44.8]} 29. Rc6
{[%clk 0:00:26.5]} 29... Qd7 {[%clk 0:01:43.2]} 30. Rd1 {[%clk 0:00:25]} 30...
Nc3 {[%clk 0:01:40.8]} 31. Rd3 {[%clk 0:00:25.5]} 31... Red8 {[%clk 0:01:14.7]}
32. Rc4 {[%clk 0:00:24.6]} 32... Qxa4 {[%clk 0:01:06]} 33. Rdxc3 {[%clk
0:00:23.9]} 33... Qa1+ {[%clk 0:00:53]} 34. Rc1 {[%clk 0:00:23.8]} 34... Qb2
{[%clk 0:00:53.9]} 35. Rb1 {[%clk 0:00:23.2]} 35... Qxb3 {[%clk 0:00:53.3]} 36.
Rxb3 {[%clk 0:00:23.3]} 36... Bf8 {[%clk 0:00:54.2]} 37. Ne5 {[%clk 0:00:22.3]}
37... Ra8 {[%clk 0:00:54.1]} 38. Nc6 {[%clk 0:00:22.3]} 38... Ra1+ {[%clk
0:00:54.3]} 39. Kh2 {[%clk 0:00:21.6]} 39... Bd6+ {[%clk 0:00:55.2]} 40. g3
{[%clk 0:00:21.8]} 40... Re8 {[%clk 0:00:55.3]} 41. Kg2 {[%clk 0:00:19]} 41...
h5 {[%clk 0:00:53.4]} 42. h4 {[%clk 0:00:18.4]} 42... Ra2 {[%clk 0:00:51.5]} 43.
Nxb4 {[%clk 0:00:15.8]} 43... Rd2 {[%clk 0:00:52.1]} 44. Nc6 {[%clk 0:00:14.4]}
44... Kg7 {[%clk 0:00:51.7]} 45. Rd4 {[%clk 0:00:14.7]} 45... Ra2 {[%clk
0:00:50.8]} 46. Rbd3 {[%clk 0:00:14]} 46... Bc5 {[%clk 0:00:49.8]} 47. Rd2
{[%clk 0:00:14.2]} 47... Ra6 {[%clk 0:00:46.3]} 48. R4d3 {[%clk 0:00:14.4]}
48... Re4 {[%clk 0:00:43.6]} 49. Rc2 {[%clk 0:00:14.6]} 49... Bd6 {[%clk
0:00:40.7]} 50. Nd4 {[%clk 0:00:15.2]} 50... Ra4 {[%clk 0:00:35.7]} 51. Nf3
{[%clk 0:00:15.6]} 51... Re7 {[%clk 0:00:34]} 52. Ng5 {[%clk 0:00:16]} 52... Rd7
{[%clk 0:00:34.4]} 53. Rc6 {[%clk 0:00:15.7]} 53... Kf8 {[%clk 0:00:33.5]} 54.
Rd2 {[%clk 0:00:15.7]} 54... Be7 {[%clk 0:00:32.7]} 55. Nf3 {[%clk 0:00:15.3]}
55... Bd6 {[%clk 0:00:32.6]} 56. Nc4 {[%clk 0:00:15.8]} 56... Bb8 {[%clk
0:00:31.9]} 57. Nb6 {[%clk 0:00:14.7]} 1-0